[Event "Turkish Youth Championships 2023"]
[Site "Samsun"]
[Date "2023.05.24"]
[Round "8.8"]
[White "Saka, Omer"]
[Black "Eroz, Enis"]
[Result "1/2-1/2"]
[WhiteElo "1843"]
[BlackElo "1830"]
[PlyCount "146"]
[EventDate "2023.05.19"]
[EventType "swiss"]
[EventCountry "TUR"]
[TimeControl "5400+30"]
[WhiteClock "0:00:48"]

1. d4 {[%emt 0:01:00]} Nf6 {[%emt 0:01:00]} 2. c4 {[%emt 0:00:30]} c6 {[%emt 0:00:30]} 3. Nf3 {[%emt 0:00:30]} d5 {[%emt 0:00:30]} 4. g3 {[%emt 0:00:30]} dxc4 {[%emt 0:00:30]} 5. Bg2 {[%emt 0:03:30]} g6 {[%emt 0:01:30]} 6. O-O {[%emt 0:03:30]} Bg7 {[%emt 0:00:30]} 7. Qc2 {[%emt 0:04:30]} b5 {[%emt 0:08:30]} 8. Ne5 {[%emt 0:07:30]} Bb7 {[%emt 0:01:30]} 9. b3 {[%emt 0:03:30]} cxb3 {[%emt 0:02:30]} 10. axb3 {[%emt 0:00:30]} O-O {[%emt 0:01:30]} 11. e3 {[%emt 0:08:30]} Nd5 {[%emt 0:12:30]} 12. Nd3 {[%emt 0:04:30]} Na6 {[%emt 0:06:30]} 13. Ba3 {[%emt 0:12:30]} b4 {[%emt 0:03:30]} 14. Bb2 {[%emt 0:00:30]} Rc8 {[%emt 0:21:30]} 15. Rc1 {[%emt 0:11:30]} Qb6 {[%emt 0:16:31]} 16. Nc5 {[%emt 0:16:49]} Nxc5 {[%emt 0:01:11]} 17. Qxc5 {[%emt 0:01:09]} Qxc5 {[%emt 0:12:50]} 18. Rxc5 {[%emt 0:00:36]} e6 {[%emt 0:00:09]} 19. Nd2 {[%emt 0:03:50]} a6 {[%emt 0:03:52]} 20. Ne4 {[%emt 0:03:22]} Rfd8 {[%emt 0:00:46]} 21. Rc2 {[%emt 0:02:21]} Ra8 {[%emt 0:01:36]} 22. Nc5 {[%emt 0:01:05]} Bc8 {[%emt 0:00:00]} 23. Ra5 {[%emt 0:00:14]} Kf8 {[%emt 0:00:27]} 24. Kf1 {[%emt 0:01:49]} Ke7 {[%emt 0:00:22]} 25. Nd3 {[%emt 0:00:57]} Bb7 {[%emt 0:00:26]} 26. Rc4 {[%emt 0:04:40]} f5 {[%emt 0:01:04]} 27. Nxb4 {[%emt 0:00:31]} Nxb4 {[%emt 0:00:30]} 28. Rxb4 {[%emt 0:00:30]} Rab8 {[%emt 0:00:30]} 29. Rc5 {[%emt 0:00:30]} Kd7 {[%emt 0:00:30]} 30. Rxb7+ {[%emt 0:00:30]} Rxb7 {[%emt 0:00:30]} 31. Bxc6+ {[%emt 0:00:30]} Kc7 {[%emt 0:00:30]} 32. Bxb7+ {[%emt 0:00:30]} Kxb7 {[%emt 0:00:00]} 33. Ke2 {[%emt 0:00:00]} Bf8 {[%emt 0:00:00]} 34. Rc4 {[%emt 0:00:00]} Rd5 {[%emt 0:00:02]} 35. Kd3 {[%emt 0:02:40]} Rb5 {[%emt 0:00:30]} 36. Kc2 {[%emt 0:00:00]} Bd6 {[%emt 0:00:00]} 37. Bc3 {[%emt 0:01:00]} g5 {[%emt 0:00:12]} 38. Ra4 {[%emt 0:01:05]} h6 {[%emt 0:01:43]} 39. Ra1 {[%emt 0:00:30]} Rb6 {[%emt 0:00:00]} 40. f3 {[%emt 0:00:20]} Rc6 {[%emt 0:00:38]} 41. Kd3 {[%emt 0:00:57]} Rb6 {[%emt 0:01:31]} 42. Rb1 {[%emt 0:00:12]} Kc6 {[%emt 0:00:52]} 43. e4 {[%emt 0:00:30]} Rb5 {[%emt 0:00:00]} 44. Kc4 {[%emt 0:01:08]} Kd7 {[%emt 0:00:46]} 45. g4 {[%emt 0:01:04]} Rb6 {[%emt 0:00:51]} 46. h3 {[%emt 0:00:22]} Rc6+ {[%emt 0:00:08]} 47. Kd3 {[%emt 0:00:09]} f4 {[%emt 0:00:56]} 48. b4 {[%emt 0:01:26]} Rb6 {[%emt 0:00:10]} 49. Rb2 {[%emt 0:00:00]} Rb7 {[%emt 0:01:18]} 50. d5 {[%emt 0:00:39]} e5 {[%emt 0:01:23]} 51. Kc4 {[%emt 0:00:30]} Rc7+ {[%emt 0:00:00]} 52. Kb3 {[%emt 0:00:00]} Kc8 {[%emt 0:00:28]} 53. Rc2 {[%emt 0:01:02]} Kb7 {[%emt 0:00:16]} 54. Ra2 {[%emt 0:00:25]} Kb6 {[%emt 0:00:48]} 55. Bd2 {[%emt 0:00:16]} Rc8 {[%emt 0:00:00]} 56. Ra1 {[%emt 0:01:15]} Kb5 {[%emt 0:00:12]} 57. Be1 {[%emt 0:00:00]} Rc7 {[%emt 0:00:49]} 58. Ra5+ {[%emt 0:00:42]} Kb6 {[%emt 0:00:30]} 59. Ra1 {[%emt 0:00:30]} Kb5 {[%emt 0:00:00]} 60. Ra5+ {[%emt 0:00:21]} Kb6 {[%emt 0:00:00]} 61. Bc3 {[%emt 0:00:29]} Rc8 {[%emt 0:00:01]} 62. Ra2 {[%emt 0:00:10]} Kb5 {[%emt 0:00:11]} 63. Rc2 {[%emt 0:00:47]} Rc4 {[%emt 0:00:35]} 64. Rb2 {[%emt 0:00:00]} Rc8 {[%emt 0:01:18]} 65. Bd2 {[%emt 0:01:04]} Rc4 {[%emt 0:00:24]} 66. Ra2 {[%emt 0:00:31]} Rd4 {[%emt 0:00:50]} 67. Kc2 {[%emt 0:00:24]} Rc4+ {[%emt 0:00:41]} 68. Kd3 {[%emt 0:00:30]} Bxb4 {[%emt 0:00:51]} 69. Bxb4 {[%emt 0:00:40]} Rxb4 {[%emt 0:00:01]} 70. Kc3 {[%emt 0:00:28]} Rc4+ {[%emt 0:00:04]} 71. Kd3 {[%emt 0:00:04]} Rd4+ {[%emt 0:00:37]} 72. Kc3 {[%emt 0:00:39]} Rc4+ {[%emt 0:00:11]} 73. Kd3 {[%emt 0:00:54]} Rd4+ {[%emt 0:00:05]} 1/2-1/2

[Event "Turkish Youth Championships 2023"]
[Site "Samsun"]
[Date "2023.05.24"]
[Round "8.9"]
[White "Kurtyilmaz, Kuzey"]
[Black "Dogan, Umut Anil"]
[Result "1/2-1/2"]
[WhiteElo "1608"]
[BlackElo "1857"]
[PlyCount "134"]
[EventDate "2023.05.19"]
[EventType "swiss"]
[EventCountry "TUR"]
[TimeControl "5400+30"]
[WhiteClock "0:00:24"]

1. e4 {[%emt 0:01:00]} c6 {[%emt 0:01:00]} 2. c4 {[%emt 0:00:00]} d5 {[%emt 0:00:30]} 3. cxd5 {[%emt 0:00:00]} cxd5 {[%emt 0:00:30]} 4. exd5 {[%emt 0:00:00]} Nf6 {[%emt 0:01:30]} 5. Nc3 {[%emt 0:00:00]} Nxd5 {[%emt 0:02:30]} 6. Nf3 {[%emt 0:00:30]} Nc6 {[%emt 0:06:30]} 7. Bb5 {[%emt 0:00:30]} Nxc3 {[%emt 0:01:30]} 8. bxc3 {[%emt 0:00:00]} Bd7 {[%emt 0:01:30]} 9. O-O {[%emt 0:00:00]} e6 {[%emt 0:01:30]} 10. d4 {[%emt 0:00:30]} Be7 {[%emt 0:00:00]} 11. Bf4 {[%emt 0:05:30]} O-O {[%emt 0:04:00]} 12. Bd3 {[%emt 0:04:30]} Bf6 {[%emt 0:05:30]} 13. Qb1 {[%emt 0:01:30]} h6 {[%emt 0:08:30]} 14. Qxb7 {[%emt 0:00:00]} Ne7 {[%emt 0:08:30]} 15. Be4 {[%emt 0:04:00]} Rc8 {[%emt 0:01:30]} 16. Qxa7 {[%emt 0:15:30]} Rxc3 {[%emt 0:02:30]} 17. Rfd1 {[%emt 0:19:30]} Bc6 {[%emt 0:06:30]} 18. Bxc6 {[%emt 0:05:30]} Nxc6 {[%emt 0:00:30]} 19. Qa4 {[%emt 0:02:30]} Qd5 {[%emt 0:10:30]} 20. Rac1 {[%emt 0:08:30]} Rxf3 {[%emt 0:05:30]} 21. Rc5 {[%emt 0:03:30]} Qe4 {[%emt 0:07:30]} 22. gxf3 {[%emt 0:00:30]} Qxf4 {[%emt 0:00:30]} 23. Qxc6 {[%emt 0:03:30]} Bxd4 {[%emt 0:02:30]} 24. Rc4 {[%emt 0:00:30]} Rd8 {[%emt 0:01:44]} 25. Kf1 {[%emt 0:04:30]} e5 {[%emt 0:05:39]} 26. Qc7 {[%emt 0:01:30]} Rd5 {[%emt 0:01:45]} 27. Qc8+ {[%emt 0:00:30]} Kh7 {[%emt 0:00:34]} 28. Qg4 {[%emt 0:00:52]} Qxg4 {[%emt 0:02:03]} 29. fxg4 {[%emt 0:00:08]} Kg6 {[%emt 0:01:21]} 30. Kg2 {[%emt 0:02:00]} h5 {[%emt 0:00:25]} 31. gxh5+ {[%emt 0:00:37]} Kxh5 {[%emt 0:00:30]} 32. a4 {[%emt 0:00:00]} g5 {[%emt 0:01:23]} 33. Rb1 {[%emt 0:00:19]} Kg4 {[%emt 0:01:02]} 34. Rb5 {[%emt 0:00:45]} Rd6 {[%emt 0:00:16]} 35. a5 {[%emt 0:00:00]} Kf4 {[%emt 0:01:00]} 36. Rb6 {[%emt 0:00:29]} Rd7 {[%emt 0:01:19]} 37. a6 {[%emt 0:00:29]} f5 {[%emt 0:01:17]} 38. Rb7 {[%emt 0:00:42]} Rd8 {[%emt 0:00:10]} 39. Rf7 {[%emt 0:10:21]} g4 {[%emt 0:03:58]} 40. Rc6 {[%emt 0:00:41]} Ke4 {[%emt 0:02:59]} 41. Rcf6 {[%emt 0:00:44]} f4 {[%emt 0:00:47]} 42. Rg7 {[%emt 0:00:30]} Rc8 {[%emt 0:00:22]} 43. a7 {[%emt 0:04:20]} Ra8 {[%emt 0:00:42]} 44. Rff7 {[%emt 0:00:39]} Bc5 {[%emt 0:00:49]} 45. Rxg4 {[%emt 0:01:40]} Bxa7 {[%emt 0:00:17]} 46. h4 {[%emt 0:00:25]} Bd4 {[%emt 0:00:27]} 47. h5 {[%emt 0:01:51]} Ra2 {[%emt 0:00:30]} 48. h6 {[%emt 0:00:11]} Rxf2+ {[%emt 0:00:09]} 49. Kh3 {[%emt 0:00:15]} Ke3 {[%emt 0:01:04]} 50. h7 {[%emt 0:01:11]} e4 {[%emt 0:00:33]} 51. Rfg7 {[%emt 0:00:39]} Rf1 {[%emt 0:00:27]} 52. Kg2 {[%emt 0:00:38]} Ke2 {[%emt 0:01:23]} 53. h8=Q {[%emt 0:00:55]} f3+ {[%emt 0:00:28]} 54. Kh2 {[%emt 0:00:17]} Be5+ {[%emt 0:00:49]} 55. Rg3 {[%emt 0:00:08]} f2 {[%emt 0:00:06]} 56. Qh5+ {[%emt 0:00:20]} Kd2 {[%emt 0:00:37]} 57. Kg2 {[%emt 0:01:03]} Rg1+ {[%emt 0:00:17]} 58. Kh2 {[%emt 0:01:23]} f1=Q {[%emt 0:00:40]} 59. Rd7+ {[%emt 0:00:51]} Kc2 {[%emt 0:00:25]} 60. Rc7+ {[%emt 0:00:33]} Bxc7 {[%emt 0:00:52]} 61. Qc5+ {[%emt 0:00:01]} Kd2 {[%emt 0:00:12]} 62. Qc3+ {[%emt 0:00:29]} Kd1 {[%emt 0:00:22]} 63. Qa1+ {[%emt 0:00:56]} Kc2 {[%emt 0:00:18]} 64. Qa2+ {[%emt 0:00:11]} Kc1 {[%emt 0:00:17]} 65. Qa1+ {[%emt 0:00:29]} Kd2 {[%emt 0:00:36]} 66. Qb2+ {[%emt 0:00:21]} Kd1 {[%emt 0:00:24]} 67. Qb1+ {[%emt 0:00:37]} Kd2 {[%emt 0:00:17]} 1/2-1/2

[Event "Turkish Youth Championships 2023"]
[Site "Samsun"]
[Date "2023.05.24"]
[Round "8.11"]
[White "Sahbudak, Baris Cinar"]
[Black "Ozgun, Yigit Deniz"]
[Result "1-0"]
[WhiteElo "1603"]
[BlackElo "1747"]
[PlyCount "93"]
[EventDate "2023.05.19"]
[EventType "swiss"]
[EventCountry "TUR"]
[TimeControl "5400+30"]
[BlackClock "0:51:00"]

1. e4 {[%emt 0:01:00]} Nf6 {[%emt 0:01:00]} 2. e5 {[%emt 0:00:30]} Nd5 {[%emt 0:00:30]} 3. c4 {[%emt 0:00:30]} Nb6 {[%emt 0:00:30]} 4. d4 {[%emt 0:00:30]} d6 {[%emt 0:00:30]} 5. f4 {[%emt 0:00:30]} dxe5 {[%emt 0:00:00]} 6. fxe5 {[%emt 0:00:00]} Nc6 {[%emt 0:00:00]} 7. Be3 {[%emt 0:00:00]} Bf5 {[%emt 0:00:00]} 8. Nc3 {[%emt 0:00:30]} e6 {[%emt 0:00:00]} 9. Nf3 {[%emt 0:02:30]} Bg4 {[%emt 0:00:00]} 10. Be2 {[%emt 0:00:00]} Qd7 {[%emt 0:00:00]} 11. Qd2 {[%emt 0:26:00]} Bb4 {[%emt 0:05:30]} 12. a3 {[%emt 0:03:30]} Be7 {[%emt 0:00:30]} 13. b4 {[%emt 0:08:30]} Rd8 {[%emt 0:01:30]} 14. Rd1 {[%emt 0:12:30]} Bxf3 {[%emt 0:22:30]} 15. gxf3 {[%emt 0:01:30]} Bh4+ {[%emt 0:00:00]} 16. Kf1 {[%emt 0:08:30]} f6 {[%emt 0:00:00]} 17. f4 {[%emt 0:09:30]} fxe5 {[%emt 0:00:30]} 18. fxe5 {[%emt 0:00:30]} Nxe5 {[%emt 0:01:30]} 19. dxe5 {[%emt 0:07:58]} Qf7+ {[%emt 0:00:30]} 20. Kg2 {[%emt 0:00:30]} Rxd2 {[%emt 0:00:00]} 21. Rxd2 {[%emt 0:00:00]} O-O {[%emt 0:00:00]} 22. Rd4 {[%emt 0:03:36]} Be7 {[%emt 0:03:30]} 23. Rg1 {[%emt 0:02:28]} Qf5 {[%emt 0:00:30]} 24. Kh1 {[%emt 0:02:37]} Qxe5 {[%emt 0:00:30]} 25. Re4 {[%emt 0:00:13]} Qf5 {[%emt 0:03:30]} 26. Bg4 {[%emt 0:00:54]} Bf6 {[%emt 0:13:30]} 27. Bxf5 {[%emt 0:00:57]} exf5 {[%emt 0:00:00]} 28. Rd4 {[%emt 0:01:22]} Bxd4 {[%emt 0:00:00]} 29. Bxd4 {[%emt 0:00:30]} g6 {[%emt 0:00:30]} 30. Bxb6 {[%emt 0:00:49]} axb6 {[%emt 0:00:30]} 31. Nd5 {[%emt 0:00:45]} c6 {[%emt 0:00:30]} 32. Nxb6 {[%emt 0:00:19]} Rd8 {[%emt 0:00:30]} 33. Re1 {[%emt 0:00:00]} Kf7 {[%emt 0:00:30]} 34. c5 {[%emt 0:00:08]} Rd4 {[%emt 0:00:00]} 35. Nc8 {[%emt 0:00:45]} Kf6 {[%emt 0:00:00]} 36. Nd6 {[%emt 0:00:30]} Rd3 {[%emt 0:00:00]} 37. Nxb7 {[%emt 0:00:00]} Rxa3 {[%emt 0:00:00]} 38. Na5 {[%emt 0:00:00]} f4 {[%emt 0:00:30]} 39. Nxc6 {[%emt 0:00:15]} Rb3 {[%emt 0:00:30]} 40. Rc1 {[%emt 0:00:00]} f3 {[%emt 0:00:30]} 41. Nd4 {[%emt 0:00:29]} Rxb4 {[%emt 0:00:00]} 42. c6 {[%emt 0:00:56]} f2 {[%emt 0:00:00]} 43. Kg2 {[%emt 0:00:19]} Rb8 {[%emt 0:01:30]} 44. c7 {[%emt 0:00:30]} Rc8 {[%emt 0:00:30]} 45. Nb5 {[%emt 0:00:30]} Ke7 {[%emt 0:00:00]} 46. Na7 {[%emt 0:00:00]} f1=Q+ {[%emt 0:00:00]} 47. Kxf1 {[%emt 0:00:00]} 1-0

[Event "Turkish Youth Championships 2023"]
[Site "Samsun"]
[Date "2023.05.24"]
[Round "8.12"]
[White "Cakmak, Kursat Kagan"]
[Black "Coskun, Emre"]
[Result "1/2-1/2"]
[WhiteElo "1498"]
[BlackElo "1750"]
[PlyCount "132"]
[EventDate "2023.05.19"]
[EventType "swiss"]
[EventCountry "TUR"]
[TimeControl "5400+30"]
[WhiteClock "0:09:16"]

1. e4 {[%emt 0:01:00]} e5 {[%emt 0:01:00]} 2. Nf3 {[%emt 0:00:30]} Nc6 {[%emt 0:00:30]} 3. Bc4 {[%emt 0:00:30]} Bc5 {[%emt 0:00:30]} 4. c3 {[%emt 0:00:00]} Nf6 {[%emt 0:00:00]} 5. d3 {[%emt 0:00:00]} d6 {[%emt 0:03:00]} 6. Nbd2 {[%emt 0:00:00]} h6 {[%emt 0:01:30]} 7. h3 {[%emt 0:01:00]} a6 {[%emt 0:01:30]} 8. Bb3 {[%emt 0:00:30]} Ba7 {[%emt 0:00:30]} 9. Nf1 {[%emt 0:00:30]} Ne7 {[%emt 0:06:30]} 10. Ng3 {[%emt 0:00:30]} c6 {[%emt 0:02:30]} 11. Nh4 {[%emt 0:07:30]} d5 {[%emt 0:08:30]} 12. Qf3 {[%emt 0:02:30]} Qd6 {[%emt 0:00:30]} 13. Be3 {[%emt 0:07:30]} Bxe3 {[%emt 0:08:30]} 14. fxe3 {[%emt 0:03:30]} Be6 {[%emt 0:01:30]} 15. Nhf5 {[%emt 0:02:30]} Nxf5 {[%emt 0:00:30]} 16. exf5 {[%emt 0:00:30]} Bd7 {[%emt 0:01:30]} 17. Rd1 {[%emt 0:06:30]} a5 {[%emt 0:01:30]} 18. O-O {[%emt 0:03:30]} a4 {[%emt 0:04:30]} 19. Bc2 {[%emt 0:00:30]} c5 {[%emt 0:13:30]} 20. c4 {[%emt 0:16:30]} O-O {[%emt 0:12:30]} 21. Nh5 {[%emt 0:06:30]} Nxh5 {[%emt 0:02:30]} 22. Qxh5 {[%emt 0:00:00]} f6 {[%emt 0:01:30]} 23. Qg4 {[%emt 0:08:00]} Bc6 {[%emt 0:04:30]} 24. d4 {[%emt 0:07:30]} dxc4 {[%emt 0:01:30]} 25. dxe5 {[%emt 0:01:30]} Qxe5 {[%emt 0:00:30]} 26. Qxc4+ {[%emt 0:00:30]} Kh8 {[%emt 0:00:00]} 27. Qc3 {[%emt 0:00:00]} Rfe8 {[%emt 0:01:00]} 28. Qxe5 {[%emt 0:02:00]} Rxe5 {[%emt 0:00:30]} 29. Kf2 {[%emt 0:00:00]} Rae8 {[%emt 0:01:30]} 30. Rfe1 {[%emt 0:00:00]} Be4 {[%emt 0:01:30]} 31. Bxe4 {[%emt 0:03:30]} Rxe4 {[%emt 0:00:30]} 32. Rd7 {[%emt 0:01:30]} Rb4 {[%emt 0:00:30]} 33. Re2 {[%emt 0:00:00]} h5 {[%emt 0:01:52]} 34. Kf3 {[%emt 0:00:00]} h4 {[%emt 0:00:48]} 35. Rd5 {[%emt 0:01:30]} b6 {[%emt 0:00:37]} 36. e4 {[%emt 0:02:24]} Kh7 {[%emt 0:00:06]} 37. Rd6 {[%emt 0:00:23]} b5 {[%emt 0:03:53]} 38. Rd5 {[%emt 0:02:50]} Rc4 {[%emt 0:00:31]} 39. Rd3 {[%emt 0:02:46]} b4 {[%emt 0:00:35]} 40. b3 {[%emt 0:00:51]} axb3 {[%emt 0:03:36]} 41. axb3 {[%emt 0:00:01]} Rc1 {[%emt 0:00:36]} 42. Kg4 {[%emt 0:01:20]} Rc3 {[%emt 0:01:49]} 43. Rxc3 {[%emt 0:01:45]} bxc3 {[%emt 0:00:00]} 44. Rc2 {[%emt 0:01:00]} Rxe4+ {[%emt 0:00:30]} 45. Kf3 {[%emt 0:00:00]} Re5 {[%emt 0:01:22]} 46. Kf4 {[%emt 0:00:00]} Kg8 {[%emt 0:01:20]} 47. Rxc3 {[%emt 0:00:32]} Kf7 {[%emt 0:01:06]} 48. Rc2 {[%emt 0:02:13]} Ke8 {[%emt 0:01:22]} 49. Ra2 {[%emt 0:00:24]} Re1 {[%emt 0:01:56]} 50. Rc2 {[%emt 0:03:37]} Re5 {[%emt 0:01:16]} 51. Ra2 {[%emt 0:00:05]} Rd5 {[%emt 0:00:35]} 52. Ra7 {[%emt 0:01:29]} Rd7 {[%emt 0:00:39]} 53. Ra5 {[%emt 0:00:28]} Rd5 {[%emt 0:02:27]} 54. Ra7 {[%emt 0:00:23]} Rd4+ {[%emt 0:00:29]} 55. Ke3 {[%emt 0:00:33]} Rd7 {[%emt 0:00:46]} 56. Ra5 {[%emt 0:00:19]} Rb7 {[%emt 0:00:14]} 57. Rxc5 {[%emt 0:00:57]} Rxb3+ {[%emt 0:00:00]} 58. Kf2 {[%emt 0:00:20]} Rb2+ {[%emt 0:01:09]} 59. Kf3 {[%emt 0:00:13]} Rb3+ {[%emt 0:00:17]} 60. Kg4 {[%emt 0:00:01]} Rg3+ {[%emt 0:00:30]} 61. Kxh4 {[%emt 0:00:30]} Rxg2 {[%emt 0:00:30]} 62. Rc7 {[%emt 0:00:00]} Kf8 {[%emt 0:00:00]} 63. Rb7 {[%emt 0:00:21]} Kg8 {[%emt 0:00:09]} 64. Rb8+ {[%emt 0:00:31]} Kh7 {[%emt 0:00:13]} 65. Ra8 {[%emt 0:00:00]} Rg5 {[%emt 0:00:31]} 66. Rh8+ {[%emt 0:00:02]} Kxh8 {[%emt 0:00:18]} 1/2-1/2

[Event "Turkish Youth Championships 2023"]
[Site "Samsun"]
[Date "2023.05.24"]
[Round "8.13"]
[White "Gani, Refik Efe"]
[Black "Atis, Hasan"]
[Result "1/2-1/2"]
[WhiteElo "1526"]
[BlackElo "1890"]
[PlyCount "74"]
[EventDate "2023.05.19"]
[EventType "swiss"]
[EventCountry "TUR"]
[TimeControl "5400+30"]
[WhiteClock "0:09:04"]

1. d4 {[%emt 0:01:00]} d5 {[%emt 0:01:00]} 2. Nf3 {[%emt 0:00:30]} Nf6 {[%emt 0:00:30]} 3. Bf4 {[%emt 0:00:30]} c5 {[%emt 0:00:30]} 4. c3 {[%emt 0:00:30]} e6 {[%emt 0:00:00]} 5. e3 {[%emt 0:00:00]} Bd6 {[%emt 0:00:00]} 6. Nbd2 {[%emt 0:03:00]} Qc7 {[%emt 0:00:30]} 7. Bxd6 {[%emt 0:05:30]} Qxd6 {[%emt 0:00:30]} 8. Ne5 {[%emt 0:00:30]} O-O {[%emt 0:12:30]} 9. Bd3 {[%emt 0:02:30]} b6 {[%emt 0:14:30]} 10. O-O {[%emt 0:08:30]} Ba6 {[%emt 0:02:30]} 11. Bxa6 {[%emt 0:02:30]} Nxa6 {[%emt 0:02:30]} 12. f4 {[%emt 0:07:30]} Ne4 {[%emt 0:05:30]} 13. Nxe4 {[%emt 0:02:30]} dxe4 {[%emt 0:00:00]} 14. Qa4 {[%emt 0:02:30]} Nc7 {[%emt 0:06:00]} 15. dxc5 {[%emt 0:04:30]} Qxc5 {[%emt 0:00:30]} 16. Qxe4 {[%emt 0:01:30]} Nd5 {[%emt 0:00:30]} 17. Rfe1 {[%emt 0:00:30]} Rad8 {[%emt 0:03:30]} 18. c4 {[%emt 0:03:30]} Nf6 {[%emt 0:08:30]} 19. Qc2 {[%emt 0:05:30]} Nd5 {[%emt 0:03:30]} 20. Qe4 {[%emt 0:02:30]} Nf6 {[%emt 0:01:30]} 21. Qc2 {[%emt 0:03:30]} Rd6 {[%emt 0:00:00]} 22. a3 {[%emt 0:02:30]} Rfd8 {[%emt 0:06:00]} 23. b4 {[%emt 0:02:30]} Qc7 {[%emt 0:00:30]} 24. Rad1 {[%emt 0:01:30]} Ne4 {[%emt 0:02:30]} 25. Rd4 {[%emt 0:06:30]} Rxd4 {[%emt 0:00:30]} 26. exd4 {[%emt 0:00:30]} Nd6 {[%emt 0:00:30]} 27. Rc1 {[%emt 0:01:30]} g6 {[%emt 0:19:10]} 28. g3 {[%emt 0:09:30]} f6 {[%emt 0:04:38]} 29. Ng4 {[%emt 0:02:05]} Kg7 {[%emt 0:02:46]} 30. Ne3 {[%emt 0:00:26]} Qb7 {[%emt 0:02:21]} 31. d5 {[%emt 0:01:09]} exd5 {[%emt 0:00:07]} 32. cxd5 {[%emt 0:01:15]} Qe7 {[%emt 0:00:21]} 33. Qd3 {[%emt 0:02:04]} Kf7 {[%emt 0:02:12]} 34. Rc6 {[%emt 0:01:46]} Re8 {[%emt 0:00:46]} 35. Kf2 {[%emt 0:01:19]} Ne4+ {[%emt 0:00:32]} 36. Kf3 {[%emt 0:00:38]} Qd7 {[%emt 0:00:29]} 37. Qd4 {[%emt 0:03:55]} Nd6 {[%emt 0:00:36]} 1/2-1/2

[Event "Turkish Youth Championships 2023"]
[Site "Samsun"]
[Date "2023.05.24"]
[Round "8.15"]
[White "Adali, Umut"]
[Black "Turker, Esat Tuna"]
[Result "0-1"]
[WhiteElo "1441"]
[BlackElo "1713"]
[PlyCount "112"]
[EventDate "2023.05.19"]
[EventType "swiss"]
[EventCountry "TUR"]
[TimeControl "5400+30"]
[WhiteClock "0:53:00"]

1. e4 {[%emt 0:01:00]} c5 {[%emt 0:01:00]} 2. Nf3 {[%emt 0:00:30]} a6 {[%emt 0:00:30]} 3. c3 {[%emt 0:00:30]} e6 {[%emt 0:00:30]} 4. d4 {[%emt 0:00:30]} d5 {[%emt 0:00:30]} 5. exd5 {[%emt 0:00:00]} exd5 {[%emt 0:00:00]} 6. Bd3 {[%emt 0:00:00]} Nf6 {[%emt 0:00:00]} 7. O-O {[%emt 0:00:00]} cxd4 {[%emt 0:06:30]} 8. Re1+ {[%emt 0:02:00]} Be7 {[%emt 0:00:30]} 9. Nxd4 {[%emt 0:00:00]} O-O {[%emt 0:00:00]} 10. Bf4 {[%emt 0:02:00]} Nc6 {[%emt 0:05:00]} 11. Nxc6 {[%emt 0:05:30]} bxc6 {[%emt 0:00:30]} 12. Nd2 {[%emt 0:00:00]} Bg4 {[%emt 0:19:30]} 13. Qc2 {[%emt 0:03:00]} Re8 {[%emt 0:02:30]} 14. h3 {[%emt 0:01:30]} Bh5 {[%emt 0:00:30]} 15. Re5 {[%emt 0:01:30]} Bg6 {[%emt 0:03:30]} 16. Rae1 {[%emt 0:01:30]} Qd7 {[%emt 0:12:30]} 17. Nf3 {[%emt 0:01:30]} Ne4 {[%emt 0:01:30]} 18. Rd1 {[%emt 0:12:30]} Qc8 {[%emt 0:16:30]} 19. Nd2 {[%emt 0:15:30]} f6 {[%emt 0:04:30]} 20. Bxe4 {[%emt 0:00:30]} fxe5 {[%emt 0:02:30]} 21. Bxg6 {[%emt 0:00:30]} hxg6 {[%emt 0:00:30]} 22. Bxe5 {[%emt 0:00:30]} Qf5 {[%emt 0:00:00]} 23. Qxf5 {[%emt 0:00:30]} gxf5 {[%emt 0:00:00]} 24. Nf3 {[%emt 0:00:00]} Rac8 {[%emt 0:04:59]} 25. Nd4 {[%emt 0:07:00]} g6 {[%emt 0:00:44]} 26. g4 {[%emt 0:00:30]} fxg4 {[%emt 0:02:12]} 27. hxg4 {[%emt 0:00:30]} Ba3 {[%emt 0:04:29]} 28. f4 {[%emt 0:00:30]} Bxb2 {[%emt 0:01:08]} 29. Nf3 {[%emt 0:00:00]} Ba3 {[%emt 0:03:39]} 30. Kg2 {[%emt 0:00:00]} Bf8 {[%emt 0:01:03]} 31. f5 {[%emt 0:00:30]} gxf5 {[%emt 0:02:01]} 32. gxf5 {[%emt 0:00:30]} Bg7 {[%emt 0:00:00]} 33. f6 {[%emt 0:00:30]} Rxe5 {[%emt 0:00:00]} 34. Nxe5 {[%emt 0:00:30]} Bxf6 {[%emt 0:00:54]} 35. Ng6 {[%emt 0:00:30]} Kf7 {[%emt 0:01:01]} 36. Nf4 {[%emt 0:00:30]} Bxc3 {[%emt 0:00:22]} 37. Rf1 {[%emt 0:00:00]} Bf6 {[%emt 0:03:53]} 38. Nh5 {[%emt 0:00:00]} Rg8+ {[%emt 0:00:00]} 39. Kh3 {[%emt 0:00:30]} Rg6 {[%emt 0:00:10]} 40. Rc1 {[%emt 0:00:00]} Be5 {[%emt 0:00:41]} 41. Re1 {[%emt 0:00:00]} Bd6 {[%emt 0:00:12]} 42. Rb1 {[%emt 0:00:30]} c5 {[%emt 0:02:50]} 43. Rb6 {[%emt 0:00:30]} Be5 {[%emt 0:00:50]} 44. Rb7+ {[%emt 0:00:30]} Ke6 {[%emt 0:00:00]} 45. Kh4 {[%emt 0:00:00]} Kf5 {[%emt 0:00:38]} 46. Rd7 {[%emt 0:00:00]} d4 {[%emt 0:00:39]} 47. Rf7+ {[%emt 0:00:00]} Ke4 {[%emt 0:00:48]} 48. Rf1 {[%emt 0:00:00]} d3 {[%emt 0:00:23]} 49. Re1+ {[%emt 0:00:30]} Kd4 {[%emt 0:00:30]} 50. Kh3 {[%emt 0:00:00]} d2 {[%emt 0:00:00]} 51. Rd1 {[%emt 0:00:00]} Ke3 {[%emt 0:00:23]} 52. Kh4 {[%emt 0:00:30]} Ke2 {[%emt 0:00:00]} 53. Rh1 {[%emt 0:00:00]} d1=Q {[%emt 0:00:11]} 54. Nf4+ {[%emt 0:00:00]} Bxf4 {[%emt 0:00:00]} 55. Re1+ {[%emt 0:00:30]} Kxe1 {[%emt 0:00:23]} 56. Kh3 {[%emt 0:00:00]} Qg4# {[%emt 0:00:00]} 0-1

[Event "Turkish Youth Championships 2023"]
[Site "Samsun"]
[Date "2023.05.24"]
[Round "8.16"]
[White "Derbentli, Cemil Furkan"]
[Black "Alagoz, Zumra Meryem"]
[Result "0-1"]
[WhiteElo "1486"]
[BlackElo "1699"]
[PlyCount "72"]
[EventDate "2023.05.19"]
[EventType "swiss"]
[EventCountry "TUR"]
[TimeControl "5400+30"]
[WhiteClock "0:20:00"]

1. e4 {[%emt 0:01:00]} e6 {[%emt 0:01:00]} 2. d4 {[%emt 0:00:30]} d5 {[%emt 0:00:00]} 3. exd5 {[%emt 0:00:00]} exd5 {[%emt 0:00:00]} 4. Nf3 {[%emt 0:00:00]} Nc6 {[%emt 0:01:30]} 5. c3 {[%emt 0:00:30]} Bd6 {[%emt 0:03:30]} 6. Bd3 {[%emt 0:02:30]} Nge7 {[%emt 0:01:30]} 7. O-O {[%emt 0:02:30]} Bg4 {[%emt 0:00:30]} 8. Nbd2 {[%emt 0:00:00]} Qd7 {[%emt 0:03:30]} 9. Re1 {[%emt 0:01:00]} O-O-O {[%emt 0:01:30]} 10. b4 {[%emt 0:00:30]} Rde8 {[%emt 0:01:30]} 11. Qa4 {[%emt 0:01:30]} Kb8 {[%emt 0:00:30]} 12. b5 {[%emt 0:00:30]} Nd8 {[%emt 0:00:30]} 13. Ne5 {[%emt 0:02:30]} Bxe5 {[%emt 0:01:30]} 14. dxe5 {[%emt 0:00:30]} Bf5 {[%emt 0:20:30]} 15. Bf1 {[%emt 0:01:30]} Ng6 {[%emt 0:05:30]} 16. Nf3 {[%emt 0:03:30]} Be4 {[%emt 0:03:30]} 17. Nd4 {[%emt 0:02:30]} Nxe5 {[%emt 0:06:30]} 18. f3 {[%emt 0:01:30]} Bg6 {[%emt 0:04:30]} 19. Be3 {[%emt 0:01:30]} b6 {[%emt 0:02:30]} 20. Rad1 {[%emt 0:00:30]} Qc8 {[%emt 0:04:30]} 21. Bf2 {[%emt 0:13:30]} f6 {[%emt 0:04:30]} 22. Nc6+ {[%emt 0:16:30]} Nexc6 {[%emt 0:01:30]} 23. bxc6 {[%emt 0:00:30]} Rxe1 {[%emt 0:00:30]} 24. Bxe1 {[%emt 0:00:30]} Be8 {[%emt 0:04:30]} 25. Bb5 {[%emt 0:01:30]} Qe6 {[%emt 0:01:30]} 26. c4 {[%emt 0:00:30]} Bxc6 {[%emt 0:03:30]} 27. cxd5 {[%emt 0:11:30]} Bxb5 {[%emt 0:05:09]} 28. Qxb5 {[%emt 0:00:30]} Qe8 {[%emt 0:00:00]} 29. Qc4 {[%emt 0:05:30]} Nb7 {[%emt 0:01:13]} 30. Bg3 {[%emt 0:06:30]} Qd7 {[%emt 0:02:11]} 31. h4 {[%emt 0:01:30]} Rd8 {[%emt 0:02:36]} 32. Rc1 {[%emt 0:01:30]} Nd6 {[%emt 0:01:08]} 33. Qd3 {[%emt 0:00:00]} g6 {[%emt 0:00:41]} 34. Rc6 {[%emt 0:01:00]} Ne8 {[%emt 0:01:45]} 35. Re6 {[%emt 0:01:30]} Qxe6 {[%emt 0:01:02]} 36. Bxc7+ {[%emt 0:01:30]} Nxc7 {[%emt 0:00:10]} 0-1